fUST/lending_fUST_20250925
["ID","MTS","AMOUNT","RATE_DAILY","PERIOD"]
[387475390,1758739842772,-528.43,0.00024302,2]
[387475391,1758739842781,-151.0,0.000245,9]
[387475392,1758739842790,-151.0,0.00024658,2]
[387475393,1758739842800,-175.21714761,0.00024832,2]
[387475394,1758739842811,-520.23942347,0.00024832,2]
[387475395,1758739842820,-500.0,0.00024873,2]
[387475396,1758739842829,-1000.0,0.00024899,2]
[387475397,1758739842838,-255.48817063,0.00024899,2]
[387475398,1758739842848,-460784.376056,0.000249,2]
[387475399,1758739842857,-151.0,0.00024932,2]
[387475400,1758739842866,-3958.46,0.000251,2]
[387475401,1758739842876,-666.08,0.00025205,4]
[387475402,1758739842885,-288.0,0.00025206,2]
[387475403,1758739842895,-500.0,0.00025211,2]
[387475404,1758739842905,-500.0,0.00025211,2]
[387475405,1758739842915,-500.0,0.00025211,2]
[387475406,1758739842924,-500.0,0.00025211,2]
[387475407,1758739842934,-593.58246594,0.00025211,2]
[387475408,1758739842944,-151.09476238,0.00025211,2]
[387475409,1758739842953,-302.0,0.00025211,2]
[387475410,1758739842968,-1715.53318562,0.00025259,3]
[387475411,1758739842978,-1000.0,0.00025421,2]
[387475412,1758739842987,-4623.0,0.00025652,2]
[387475413,1758739842997,-978.0,0.00025652,2]
[387475414,1758739843006,-634.0,0.00025652,2]
[387475415,1758739843016,-2159.0,0.00025652,2]
[387475416,1758739843025,-826.218,0.00026066,2]
[387475417,1758739843034,-704.57,0.00026171,2]
[387475418,1758739843044,-1715.53318562,0.00026331,5]
[387475420,1758739843054,-500.0,0.00026349,2]
[387475421,1758739843063,-666.08,0.00027123,6]
[387475422,1758739843073,-150.0,0.00027397,5]
[387475423,1758739843082,-1715.53318562,0.00027403,7]
[387475424,1758739843091,-250.0,0.00027945,5]
[387475425,1758739843101,-2084.92,0.00028,2]
[387475426,1758739843111,-880.71,0.0002804,2]
[387475427,1758739843120,-272.59,0.00028219,14]
[387475428,1758739843130,-367.05189,0.00028439,2]
[387475429,1758739843140,-1715.53318562,0.00028475,9]
[387475430,1758739843150,-350.0,0.00028493,5]
[387475432,1758739843159,-500.0,0.00028541,7]
[387475433,1758739843169,-272.59,0.00028904,15]
[387475434,1758739843179,-2000.0,0.00029,4]
[387475435,1758739843189,-3958.46,0.00029,2]
[387475436,1758739843199,-1210.42661488,0.00029035,22]
[387475437,1758739843210,-666.08,0.00029041,8]
[387475438,1758739843220,-450.0,0.00029041,5]
[387475439,1758739843230,-150.0,0.000292,2]
[387475440,1758739843240,-3173.41029582,0.00029227,2]
[387475441,1758739843250,-333.22015471,0.00029227,2]
[387475442,1758739843259,-151.426597,0.00029283,7]
[387475443,1758739843269,-151.0,0.00029283,7]
[387475444,1758739843279,-151.0,0.00029283,7]
[387475445,1758739843289,-151.0,0.00029283,7]
[387475446,1758739843299,-1354.7087749,0.00029315,2]
[387475447,1758739843308,-83913.0853114,0.00029315,2]
[387475448,1758739843318,-151.0,0.00029315,7]
[387475449,1758739843327,-151.0,0.00029315,7]
[387475450,1758739843339,-151.0,0.00029315,7]
[387475451,1758739843351,-151.0,0.00029315,7]
[387475453,1758739843361,-151.0,0.00029315,7]
[387475455,1758739843370,-151.0,0.00029315,7]
[387475456,1758739843380,-151.0,0.00029315,7]
[387475457,1758739843390,-151.0,0.00029315,7]
[387475458,1758739843400,-151.0,0.00029315,7]
[387475459,1758739843411,-151.0,0.00029315,7]
[387475461,1758739843421,-1664.5913469,0.00029315,2]
[387475463,1758739843430,-151.0,0.00029315,7]
[387475465,1758739843440,-151.0,0.00029315,7]
[387475467,1758739843450,-151.0,0.00029315,7]
[387475469,1758739843459,-182.785696,0.00029315,7]
[387475471,1758739843469,-151.0,0.00029315,7]
[387475473,1758739843480,-151.0,0.00029315,7]
[387475475,1758739843489,-151.0,0.00029315,7]
[387475477,1758739843499,-151.0,0.00029315,7]
[387475479,1758739843508,-269.278613,0.00029315,7]
[387475481,1758739843518,-269.278613,0.00029315,7]
[387475483,1758739843528,-269.278613,0.00029315,7]
[387475485,1758739843538,-269.278613,0.00029315,7]
[387475487,1758739843547,-151.0,0.00029315,7]
[387475489,1758739843556,-151.0,0.00029315,7]
[387475491,1758739843566,-151.0,0.00029315,7]
[387475493,1758739843576,-151.0,0.00029315,7]
[387475495,1758739843585,-151.0,0.00029315,7]
[387475497,1758739843595,-151.0,0.00029315,7]
[387475499,1758739843605,-151.0,0.00029315,7]
[387475500,1758739843615,-190.0,0.00029315,7]
[387475502,1758739843625,-151.0,0.00029315,7]
[387475504,1758739843634,-151.0,0.00029315,7]
[387475506,1758739843644,-151.0,0.00029315,7]
[387475508,1758739843655,-151.0,0.00029315,7]
[387475510,1758739843670,-1000.0,0.00029319,2]
[387475512,1758739843679,-821.86975659,0.00029319,2]
[387475515,1758739843689,-233.62170814,0.0002932,7]
[387475517,1758739843698,-151.0,0.00029326,7]
[387475519,1758739843708,-151.0,0.00029326,7]
[387475522,1758739843718,-151.0,0.00029326,7]
[387475524,1758739843727,-151.0,0.00029326,7]
[387475526,1758739843737,-259.380468,0.00029326,7]
[387475528,1758739843747,-152.519859,0.00029326,7]
[387475530,1758739843756,-151.0,0.00029326,7]
[387475532,1758739843766,-151.0,0.00029326,7]
[387475534,1758739843775,-151.0,0.00029326,7]
[387475536,1758739843784,-288.639159,0.00029326,7]
[387475538,1758739843793,-151.0,0.00029326,7]
[387475540,1758739843802,-151.0,0.00029326,7]
[387475542,1758739843812,-151.0,0.00029326,7]
[387475543,1758739843821,-151.0,0.00029326,7]
[387475545,1758739843831,-206.628109,0.00029326,7]
[387475547,1758739843840,-151.0,0.00029326,7]
[387475549,1758739843849,-151.0,0.00029326,7]
[387475551,1758739843859,-151.0,0.00029326,7]
[387475553,1758739843868,-188.895856,0.00029326,7]
[387475555,1758739843878,-151.0,0.00029326,7]
[387475557,1758739843887,-151.0,0.00029326,7]
[387475559,1758739843896,-151.0,0.00029326,7]
[387475561,1758739843906,-151.0,0.00029326,7]
[387475563,1758739843916,-155.381339,0.00029326,7]
[387475565,1758739843925,-151.0,0.00029326,7]
[387475567,1758739843935,-151.0,0.00029326,7]
[387475569,1758739843944,-159.933692,0.00029326,7]
[387475571,1758739843954,-151.0,0.00029326,7]
[387475573,1758739843966,-151.0,0.00029326,7]
[387475575,1758739843975,-151.0,0.00029326,7]
[387475577,1758739843985,-151.0,0.00029326,7]
[387475578,1758739843994,-151.0,0.00029326,7]
[387475580,1758739844005,-151.0,0.00029326,7]
[387475582,1758739844015,-151.0,0.00029326,7]
[387475584,1758739844024,-151.0,0.00029326,7]
[387475586,1758739844035,-151.0,0.00029326,7]
[387475588,1758739844044,-151.0,0.00029326,7]
[387475590,1758739844054,-151.0,0.00029326,7]
[387475592,1758739844063,-151.0,0.00029326,7]
[387475594,1758739844073,-151.0,0.00029326,7]
[387475596,1758739844082,-151.0,0.00029326,7]
[387475598,1758739844092,-202.279907,0.00029326,7]
[387475600,1758739844102,-455.986716,0.00029327,7]
[387475602,1758739844111,-455.986716,0.00029327,7]
[387475604,1758739844120,-455.986716,0.00029327,7]
[387475606,1758739844130,-455.986716,0.00029327,7]
[387475608,1758739844139,-455.986716,0.00029327,7]
[387475610,1758739844150,-455.986716,0.00029327,7]
[387475612,1758739844159,-455.986716,0.00029327,7]
[387475614,1758739844168,-455.986716,0.00029327,7]
[387475616,1758739844177,-151.0,0.00029327,7]
[387475618,1758739844187,-151.0,0.00029327,7]
[387475620,1758739844195,-151.0,0.00029327,7]
[387475622,1758739844205,-151.0,0.00029327,7]
[387475624,1758739844214,-151.0,0.00029327,7]
[387475626,1758739844223,-151.0,0.00029327,7]
[387475637,1758739844321,-151.0,0.00029327,7]
[387475639,1758739844332,-162.042622,0.00029327,7]
[387475641,1758739844341,-151.0,0.00029327,7]
[387475643,1758739844351,-151.0,0.00029327,7]
[387475645,1758739844360,-151.0,0.00029327,7]
[387475647,1758739844369,-151.0,0.00029327,7]
[387475649,1758739844378,-151.0,0.00029327,7]
[387475651,1758739844387,-151.0,0.00029327,7]
[387475653,1758739844396,-151.0,0.00029327,7]
[387475655,1758739844405,-209.457852,0.00029327,7]
[387475657,1758739844415,-155.91362,0.00029327,7]
[387475659,1758739844425,-155.91362,0.00029327,7]
[387475661,1758739844435,-155.91362,0.00029327,7]
[387475663,1758739844444,-155.91362,0.00029327,7]
[387475665,1758739844454,-424.415439,0.00029327,7]
[387475666,1758739844463,-424.415439,0.00029327,7]
[387475669,1758739844474,-424.415439,0.00029327,7]
[387475670,1758739844483,-424.415439,0.00029327,7]
[387475673,1758739844493,-151.0,0.00029327,7]
[387475674,1758739844502,-151.0,0.00029327,7]
[387475676,1758739844512,-392.602087,0.00029327,7]
[387475678,1758739844521,-151.0,0.00029327,7]
[387475680,1758739844530,-151.0,0.00029327,7]
[387475682,1758739844539,-151.0,0.00029327,7]
[387475684,1758739844549,-151.0,0.00029327,7]
[387475686,1758739844558,-151.0,0.00029327,7]
[387475688,1758739844568,-151.0,0.00029327,7]
[387475690,1758739844577,-151.0,0.00029327,7]
[387475692,1758739844587,-392.602087,0.00029327,7]
[387475694,1758739844596,-151.0,0.00029327,7]
[387475696,1758739844606,-392.602087,0.00029327,7]
[387475698,1758739844615,-392.602087,0.00029327,7]
[387475700,1758739844625,-151.0,0.00029327,7]
[387475702,1758739844635,-151.0,0.00029327,7]
[387475704,1758739844644,-865.424692,0.00029327,7]
[387475706,1758739844654,-865.424692,0.00029327,7]
[387475708,1758739844665,-865.424692,0.00029327,7]
[387475710,1758739844675,-865.424692,0.00029327,7]
[387475712,1758739844684,-151.0,0.00029327,7]
[387475714,1758739844693,-151.0,0.00029327,7]
[387475716,1758739844702,-151.0,0.00029327,7]
[387475718,1758739844712,-151.0,0.00029327,7]
[387475720,1758739844721,-151.0,0.00029327,7]
[387475722,1758739844730,-151.0,0.00029327,7]
[387475724,1758739844739,-151.0,0.00029327,7]
[387475725,1758739844748,-151.0,0.00029327,7]
[387475727,1758739844757,-270.794487,0.00029327,7]
[387475729,1758739844767,-151.0,0.00029327,7]
[387475731,1758739844776,-151.0,0.00029327,7]
[387475733,1758739844785,-270.794487,0.00029327,7]
[387475735,1758739844794,-151.0,0.00029327,7]
[387475737,1758739844803,-270.794487,0.00029327,7]
[387475739,1758739844813,-151.0,0.00029327,7]
[387475741,1758739844822,-151.0,0.00029327,7]
[387475743,1758739844832,-114964.86237228,0.00029327,20]
[387475745,1758739844841,-500.0,0.00029327,10]
[387475747,1758739844851,-500.0,0.00029327,10]
[387475749,1758739844861,-500.0,0.00029327,10]
[387475751,1758739844870,-500.0,0.00029327,10]
[387475753,1758739844879,-500.0,0.00029327,10]
[387475755,1758739844888,-500.0,0.00029327,10]
[387475757,1758739844898,-2000.0,0.00029327,30]
[387475759,1758739844907,-554825.37444859,0.00029327,20]
[387475761,1758739844918,-2000.0,0.00029327,30]
[387475763,1758739844927,-1080.8,0.00029327,30]
[387475765,1758739844936,-150.0,0.00029327,2]
[387475767,1758739844945,-250.0,0.00029327,10]
[387475768,1758739844955,-250.0,0.00029327,10]
[387475770,1758739844968,-250.0,0.00029327,10]
[387475772,1758739844977,-346.175394,0.00029327,10]
[387475774,1758739844987,-150.01,0.00029387,15]
[387475776,1758739844997,-2010.20918875,0.0002939,5]
[387475778,1758739845006,-162.0,0.000294,2]
[387475780,1758739845015,-500.0,0.00029428,7]
[387475782,1758739845024,-500.0,0.00029428,7]
[387475784,1758739845034,-279.79,0.00029428,7]
[387475786,1758739845045,-512.09729512,0.00029434,60]
[387475788,1758739845055,-166.27881145,0.0002944,2]
[387475790,1758739845064,-387100.43391877,0.0002944,2]
[387475793,1758739845090,-1611.73860243,0.0002944,2]
[387475795,1758739845101,-7502.71319051,0.0002944,2]
[387475807,1758739845203,-450.0,0.00019177,2]
[387475809,1758739845213,-480.0,0.00019178,2]
[387475810,1758739845222,-481.60542264,0.00019178,2]
[387475813,1758739845231,-270.794487,0.00029327,7]
[387475814,1758739845241,-31571.27799565,0.0002944,2]
[387475817,1758739845252,-6351.35316333,0.0002944,2]
[387475822,1758739845295,-480.0,0.00019178,2]
[387475824,1758739845304,-151.0,0.00029327,7]
[387475826,1758739845314,-112.49184814,0.0002944,2]
[387475828,1758739845325,-26791.77727155,0.0002944,2]
[387475830,1758739845336,-312.52797085,0.0002944,2]
[387475832,1758739845347,-455.65426713,0.0002944,2]
[387475834,1758739845359,-409.86150692,0.0002944,2]
[387475837,1758739845373,-3505.74026064,0.0002944,2]
[387475839,1758739845384,-40848.76451562,0.0002944,2]
[387475927,1758739846557,-711.89,0.00029317,10]
[387475929,1758739846567,-5336.85391873,0.0002944,2]
[387475935,1758739846610,-612.89906672,0.0002944,2]
[387475947,1758739846717,-460.0,0.0002944,2]
[387475949,1758739846729,-438.63549823,0.0002944,2]
[387476694,1758740085611,-300.0,0.00019177,2]
[387476695,1758740085641,-346.43697916,0.00019177,2]
[387476696,1758740085670,-170.7423381,0.00019177,2]
[387476697,1758740085698,-480.0,0.00019178,2]
[387476698,1758740085843,-480.0,0.00019178,2]
[387476699,1758740085873,-480.0,0.00019178,2]
[387476700,1758740085902,-483.24444182,0.00019178,2]
[387476701,1758740085932,-510.60614163,0.00019178,2]
[387476702,1758740085959,-480.0,0.00019178,2]
[387476703,1758740085987,-480.0,0.00019178,2]
[387476704,1758740086016,-480.0,0.00019178,2]
[387476705,1758740086047,-137.95019858,0.00019178,2]
[387476706,1758740089363,-342.04980142,0.00019178,2]
[387476707,1758740089392,-483.90294332,0.00019178,2]
[387476708,1758740089420,-480.0,0.00019178,2]
[387476709,1758740089448,-481.32854016,0.00019178,2]
[387476710,1758740089478,-480.0,0.00019178,2]
[387476711,1758740089505,-480.0,0.00019178,2]
[387476712,1758740089532,-480.0,0.00019178,2]
[387476713,1758740089559,-480.0,0.00019178,2]
[387476714,1758740089586,-480.0,0.00019178,2]
[387476715,1758740089613,-480.0,0.00019178,2]
[387476716,1758740089642,-185.4474302,0.00019178,2]
[387476725,1758740155700,-300.0,0.00019177,2]
[387476726,1758740155872,-300.0,0.00019177,2]
[387476727,1758740155900,-300.0,0.00019177,2]
[387476728,1758740155928,-1200.0,0.00019177,2]
[387476729,1758740155956,-294.5525698,0.00019178,2]
[387476730,1758740155984,-480.0,0.00019178,2]
[387476731,1758740156012,-500.0,0.00019178,2]
[387476732,1758740156038,-481.24857996,0.00019178,2]
[387476733,1758740156069,-488.75272952,0.00019178,2]
[387476734,1758740156097,-480.0,0.00019178,2]
[387476735,1758740165681,-300.0,0.00019177,2]
[387476736,1758740165711,-480.0,0.00019178,2]
[387476737,1758740165740,-320.89465237,0.00019178,2]
[387476738,1758740165769,-480.0,0.00019178,2]
[387476739,1758740165797,-480.0,0.00019178,2]
[387476740,1758740165826,-480.0,0.00019178,2]
[387476741,1758740165857,-480.0,0.00019178,2]
[387476742,1758740165887,-480.0,0.00019178,2]
[387476743,1758740165915,-480.0,0.00019178,2]
[387476744,1758740165945,-480.0,0.00019178,2]
[387476745,1758740165974,-480.0,0.00019178,2]
[387476747,1758740315242,701.4355187,0.00018301,2]
[387476748,1758740374512,3737.6485,0.00018285,2]
[387476749,1758740391298,92891.7192243,0.00029306,120]
[387476750,1758740538722,1200.0,0.00019176,2]
[387476751,1758740547501,288.33546144,0.00019078,2]
[387476752,1758740654768,318.122443,0.00018286,2]
[387476773,1758740796958,-1000.0,0.00019177,2]
[387476774,1758740796985,-1000.0,0.00019177,2]
[387476775,1758740797012,-1000.0,0.00019177,2]
[387476776,1758740797039,-1000.0,0.00019177,2]
[387476777,1758740797067,-255.48817063,0.00019177,2]
[387476778,1758740880482,376.47,0.00015984,2]
[387476779,1758740899414,1112.56365874,0.00019177,2]
[387476780,1758740899437,10000.01,0.00019177,2]
[387476781,1758740901572,358.87,0.00019168,3]
[387476782,1758740902241,-2265.43441812,0.00019177,2]
[387476783,1758740902376,-10000.01,0.00019177,2]
[387476784,1758740912070,-10000.01,0.00019177,2]
[387476785,1758740912204,-10000.01,0.00019177,2]
[387476786,1758740912641,179.44,0.00019168,3]
[387476787,1758740919943,252.29352876,0.00019077,2]
[387476789,1758740936073,200.0,0.00024,30]
[387476790,1758741003155,300.0,0.00019175,2]
[387476795,1758741032671,-500.0,0.00019176,2]
[387476796,1758741032681,-181.01285871,0.00019176,2]
[387476797,1758741032692,-318.98714129,0.00019176,2]
[387476798,1758741032701,-500.0,0.00019176,2]
[387476799,1758741032711,-500.0,0.00019176,2]
[387476800,1758741032720,-500.0,0.00019176,2]
[387476801,1758741032732,-476.11578004,0.00019176,2]
[387476802,1758741032741,-465.87105814,0.00019176,2]
[387476803,1758741032753,-500.0,0.00019176,2]
[387476804,1758741032762,-500.0,0.00019176,2]
[387476805,1758741032771,-500.0,0.00019176,2]
[387476806,1758741032780,-500.0,0.00019176,2]
[387476807,1758741032790,-500.0,0.00019176,2]
[387476808,1758741032799,-500.0,0.00019176,2]
[387476810,1758741032808,-500.0,0.00019176,2]
[387476811,1758741032817,-308.7284714,0.00019176,2]
[387476812,1758741032827,-500.0,0.00019176,2]
[387476813,1758741032836,-500.0,0.00019176,2]
[387476814,1758741032846,-500.0,0.00019176,2]
[387476815,1758741032855,-254.38607652,0.00019176,2]
[387476816,1758741032865,-500.0,0.00019176,2]
[387476817,1758741032875,-500.0,0.00019176,2]
[387476818,1758741032884,-500.0,0.00019176,2]
[387476819,1758741032893,-479.99387671,0.00019176,2]
[387476820,1758741032903,-500.0,0.00019176,2]
[387476821,1758741032912,-500.0,0.00019176,2]
[387476822,1758741032921,-500.0,0.00019176,2]
[387476823,1758741032931,-500.0,0.00019176,2]
[387476824,1758741032940,-500.0,0.00019176,2]
[387476825,1758741032950,-500.0,0.00019176,2]
[387476826,1758741032959,-500.0,0.00019176,2]
[387476827,1758741032969,-6621.96192314,0.00019177,2]
[387476828,1758741032979,-650.55789766,0.00019177,2]
[387476829,1758741032988,-922.20872494,0.00019177,2]
[387476830,1758741032999,-418.39104989,0.00019177,2]
[387476831,1758741033008,-922.20872494,0.00019177,2]
[387476832,1758741033018,-651.30643996,0.00019177,2]
[387476833,1758741033030,-270.90228498,0.00019177,2]
[387476834,1758741033041,-922.20872494,0.00019177,2]
[387476835,1758741033050,-922.20872494,0.00019177,2]
[387476836,1758741033060,-922.20872494,0.00019177,2]
[387476837,1758741033069,-922.20872494,0.00019177,2]
[387476838,1758741033079,-922.20872494,0.00019177,2]
[387476839,1758741033089,-922.20872494,0.00019177,2]
[387476840,1758741033098,-922.20872494,0.00019177,2]
[387476841,1758741033108,-922.20872494,0.00019177,2]
[387476842,1758741033118,-922.20872494,0.00019177,2]
[387476843,1758741033128,-922.20872494,0.00019177,2]
[387476844,1758741033137,-922.20872494,0.00019177,2]
[387476845,1758741033148,-922.20872494,0.00019177,2]
[387476846,1758741033157,-922.20872494,0.00019177,2]
[387476847,1758741033168,-922.20872494,0.00019177,2]
[387476848,1758741033178,-922.20872494,0.00019177,2]
[387476849,1758741033188,-1014.42959742,0.00019177,2]
[387476850,1758741033198,-1014.42959742,0.00019177,2]
[387476851,1758741033208,-1014.42959742,0.00019177,2]
[387476852,1758741033218,-1014.42959742,0.00019177,2]
[387476853,1758741033227,-1014.42959742,0.00019177,2]
[387476854,1758741033238,-1014.42959742,0.00019177,2]
[387476864,1758741033357,-1014.42959742,0.00019177,2]
[387476866,1758741033368,-1014.42959742,0.00019177,2]
[387476868,1758741033384,-1014.42959742,0.00019177,2]
[387476870,1758741033394,-480.0,0.00019178,3]
[387476872,1758741033403,-480.0,0.00019178,2]
[387476874,1758741033415,-215.3706065,0.00019178,2]
[387476876,1758741033425,-480.0,0.00019178,2]
[387476878,1758741033435,-480.0,0.00019178,2]
[387476880,1758741033446,-480.0,0.00019178,2]
[387476883,1758741033457,-480.0,0.00019178,2]
[387476884,1758741033467,-480.0,0.00019178,2]
[387476886,1758741033478,-480.0,0.00019178,2]
[387476888,1758741033487,-480.0,0.00019178,2]
[387476890,1758741033498,-480.0,0.00019178,2]
[387476892,1758741033508,-480.0,0.00019178,2]
[387476894,1758741033518,-480.0,0.00019178,2]
[387476897,1758741033528,-480.0,0.00019178,2]
[387476898,1758741033538,-487.03564083,0.00019178,2]
[387476900,1758741033548,-401.15242291,0.00019178,2]
[387476902,1758741033558,-480.0,0.00019178,2]
[387476904,1758741033569,-485.35226245,0.00019178,2]
[387476906,1758741033578,-480.0,0.00019178,2]
[387476908,1758741033588,-148.2933043,0.00019178,2]
[387476991,1758741038635,-331.7066957,0.00019178,2]
[387476992,1758741038645,-480.0,0.00019178,2]
[387476993,1758741038656,-480.0,0.00019178,2]
[387476994,1758741038666,-480.0,0.00019178,2]
[387476995,1758741038675,-480.0,0.00019178,2]
[387476996,1758741038685,-480.0,0.00019178,2]
[387476997,1758741038694,-480.0,0.00019178,2]
[387476999,1758741038703,-480.0,0.00019178,2]
[387477001,1758741038713,-480.0,0.00019178,2]
[387477003,1758741038722,-480.0,0.00019178,2]
[387477005,1758741038732,-480.00000001,0.00019178,2]
[387477007,1758741038741,-480.0,0.00019178,2]
[387477010,1758741038751,-480.0,0.00019178,2]
[387477012,1758741038761,-480.0,0.00019178,2]
[387477014,1758741038770,-480.0,0.00019178,2]
[387477016,1758741038780,-480.0,0.00019178,2]
[387477018,1758741038790,-480.0,0.00019178,2]
[387477020,1758741038799,-480.0,0.00019178,2]
[387477022,1758741038809,-480.0,0.00019178,2]
[387477024,1758741038819,-480.0,0.00019178,2]
[387477026,1758741038829,-480.0,0.00019178,2]
[387477028,1758741038841,-483.99754173,0.00019178,2]
[387477030,1758741038850,-268.51629598,0.00019178,2]
[387477032,1758741038860,-483.92561366,0.00019178,2]
[387477034,1758741038870,-487.39429315,0.00019178,2]
[387477037,1758741038880,-483.07953942,0.00019178,2]
[387477039,1758741038889,-489.76442782,0.00019178,2]
[387477041,1758741038898,-484.2633128,0.00019178,2]
[387477043,1758741038907,-485.62909935,0.00019178,2]
[387477045,1758741038917,-480.0,0.00019178,2]
[387477047,1758741038926,-481.83640574,0.00019178,2]
[387477049,1758741038936,-480.0,0.00019178,2]
[387477051,1758741038945,-480.0,0.00019178,2]
[387477053,1758741038955,-483.23820562,0.00019178,2]
[387477055,1758741038964,-480.0,0.00019178,2]
[387477057,1758741038973,-485.89337091,0.00019178,2]
[387477059,1758741038983,-480.0,0.00019178,2]
[387477061,1758741038993,-480.0,0.00019178,2]
[387477063,1758741039003,-480.0,0.00019178,2]
[387477065,1758741039013,-375.792861,0.00019178,2]
[387477067,1758741039022,-482.91,0.00019178,2]
[387477069,1758741039031,-483.19552912,0.00019178,2]
[387477071,1758741039040,-480.0,0.00019178,2]
[387477073,1758741039050,-621.35,0.00019178,2]
[387477075,1758741039060,-480.0,0.00019178,2]
[387477077,1758741039070,-480.0,0.00019178,2]
[387477079,1758741039081,-485.75963669,0.00019178,2]
[387477081,1758741039090,-488.81539216,0.00019178,2]
[387477083,1758741039101,-480.0,0.00019178,2]
[387477085,1758741039111,-480.0,0.00019178,2]
[387477087,1758741039121,-480.0,0.00019178,2]
[387477089,1758741039130,-480.0,0.00019178,2]
[387477091,1758741039141,-480.0,0.00019178,2]
[387477093,1758741039150,-480.0,0.00019178,2]
[387477095,1758741039159,-480.0,0.00019178,2]
[387477097,1758741039168,-480.0,0.00019178,2]
[387477099,1758741039177,-435.83,0.00019178,2]
[387477101,1758741039187,-480.0,0.00019178,2]
[387477103,1758741039196,-480.0,0.00019178,2]
[387477105,1758741039206,-480.0,0.00019178,2]
[387477107,1758741039216,-480.0,0.00019178,2]
[387477109,1758741039226,-480.0,0.00019178,2]
[387477111,1758741039235,-480.0,0.00019178,2]
[387477113,1758741039245,-307.56307314,0.00019178,2]
[387477115,1758741039255,-480.0,0.00019178,2]
[387477117,1758741039264,-480.0,0.00019178,2]
[387477119,1758741039274,-482.6289227,0.00019178,2]
[387477121,1758741039284,-480.0,0.00019178,2]
[387477123,1758741039293,-480.0,0.00019178,2]
[387477125,1758741039303,-480.0,0.00019178,2]
[387477127,1758741039312,-480.0,0.00019178,2]
[387477129,1758741039321,-480.0,0.00019178,2]
[387477132,1758741039332,-480.0,0.00019178,2]
[387477134,1758741039341,-422.59115298,0.00019178,2]
[387477136,1758741039350,-480.0,0.00019178,2]
[387477138,1758741039360,-465.19225493,0.00019178,2]
[387477140,1758741039369,-480.0,0.00019178,2]
[387477142,1758741039383,-559.50437615,0.00019178,2]
[387477144,1758741039392,-483.17990022,0.00019178,2]
[387477146,1758741039401,-484.70646525,0.00019178,2]
[387477148,1758741039410,-480.0,0.00019178,2]
[387477150,1758741039420,-480.0,0.00019178,2]
[387477152,1758741039429,-470.38253359,0.00019178,2]
[387477154,1758741039437,-480.0,0.00019178,2]
[387477156,1758741039449,-480.0,0.00019178,2]
[387477158,1758741039458,-484.084605,0.00019178,2]
[387477160,1758741039467,-280.43563798,0.00019178,2]
[387477162,1758741039476,-500.0,0.00019178,2]
[387477164,1758741039486,-500.0,0.00019178,2]
[387477166,1758741039495,-500.0,0.00019178,2]
[387477168,1758741039505,-480.0,0.00019178,2]
[387477170,1758741039515,-482.11502833,0.00019178,2]
[387477172,1758741039524,-480.0,0.00019178,2]
[387477174,1758741039533,-500.0,0.00019178,2]
[387477176,1758741039542,-500.0,0.00019178,2]
[387477178,1758741039552,-480.0,0.00019178,2]
[387477180,1758741039562,-480.0,0.00019178,2]
[387477182,1758741039571,-479.3059457,0.00019178,2]
[387477183,1758741039581,-480.0,0.00019178,2]
[387477184,1758741039590,-484.16148629,0.00019178,2]